Cogmind - Beta 17.1 @@@ ROGUE MODE // 2026.09.13 @ 01:54:46 Player: 4R-ZE3 Result: Destroyed by G-47 Trooper with Particle Gun Performance ------------- Evolutions (2) 1000 Regions Visited (5) 1000 Robots Destroyed (69) 345 Value Destroyed (1954) 1954 Prototype IDs (4) 80 Alien Tech Used (0) 0 Bonus (619) 619 TOTAL SCORE: 4998 Bonus ------- High Alert Combat Kills 50 Follower Combat Kills 569 Cogmind --------- Core Integrity 0/550 Matter 255/300 Energy 77/100 System Corruption 0% Temperature Cool (57) Movement Treading (160) Location -8/Recycling Parts ------- > --- POWER (1) -------- (None) > --- PROPULSION (4) --- Light Treads Light Treads Light Treads Improved Treads > --- UTILITY (4) ------ Cryofiber Web Large Storage Unit Reactive Plating > --- WEAPON (2) ------- Assault Cannon Assault Cannon > --- INVENTORY (15) --- Nuclear Core Carbon-fiber Leg Carbon-fiber Leg Carbon-fiber Leg Carbon-fiber Leg Carbon-fiber Leg Compact Wheel Compact Wheel Compact Wheel Cryofiber Web Heavy EM Pulse Gun EM Pulse Cannon Assault Cannon Missile Launcher Peak State ------------ > --- POWER ------------ Light Nuclear Core > --- PROPULSION ------- Light Treads Advanced Treads Carbon-fiber Leg Titanium Leg > --- UTILITY ---------- Improved Heat Sink Improved Heat Sink Large Storage Unit Reactive Plating > --- WEAPON ----------- Particle Gun Enhanced Autogun > --- INVENTORY -------- Ion Engine Ion Engine Cryofiber Web Cryofiber Web Cryofiber Web Cryofiber Web Improved Heat Sink Heavy EM Shotgun Heavy EM Shotgun Particle Gun Particle Gun Assault Rifle Heavy Assault Rifle Battle Cannon [Rating: 32] Favorites ----------- Power Light Nuclear Core Engine Ion Engine Power Core Light Nuclear Core Propulsion Light Treads Treads Light Treads Leg Carbon-fiber Leg Wheel Wheel Utility Large Storage Unit Device Improved Heat Sink Storage Large Storage Unit Hackware System Shield Protection Reactive Plating Weapon Assault Cannon Energy Gun Particle Gun Ballistic Gun Assault Rifle Ballistic Cannon Assault Cannon Launcher Rocket Launcher Slashing Weapon Axe Build | -11 -10 -10 -8 -8 -8 ------- Run | Yrd Mat Sub Mat Sto Rec Slots Evolved 4 | . . . 4 . . Power . | . . . . . . Propulsion 2 | . . . 2 . . Utility 2 | . . . 2 . . Weapon . | . . . . . . Parts Attached 63 | 6 9 1 23 17 7 Power 4 | 1 . . 2 1 . Engine 1 | 1 . . . . . Core 3 | . . . 2 1 . Reactor . | . . . . . . Propulsion 20 | 2 2 . 7 8 1 Treads 10 | 2 2 . 1 4 1 Leg 8 | . . . 4 4 . Wheel 2 | . . . 2 . . Hover . | . . . . . . Flight . | . . . . . . Utility 16 | 1 2 . 7 3 3 Device 7 | . 1 . 4 1 1 Storage 2 | 1 1 . . . . Processor . | . . . . . . Hackware 2 | . . . 2 . . Protection 5 | . . . 1 2 2 Artifact . | . . . . . . Weapon 23 | 2 5 1 7 5 3 Energy Gun 7 | 1 . . 3 3 . Energy Cannon . | . . . . . . Ballistic Gun 9 | 1 3 . 3 2 . Ballistic Cannon 4 | . . 1 . . 3 Launcher 2 | . 2 . . . . Special Weapon . | . . . . . . Impact Weapon . | . . . . . . Slashing Weapon 1 | . . . 1 . . Piercing Weapon . | . . . . . . Special Melee Weapon . | . . . . . . Unidentified Prototypes 2 | . . . . 2 . Parts Lost 30 | . . . 17 9 4 Power 3 | . . . 1 1 1 Propulsion 12 | . . . 7 5 . Utility 7 | . . . 4 1 2 Weapon 8 | . . . 5 2 1 Highest Loss Streak 9 | . . . 9 6 3 To Critical Strikes . | . . . . . . Average Backups 12 | 1 10 14 13 12 12 Power 1 | . 1 2 2 1 1 Propulsion 2 | . . 3 2 1 3 Utility 2 | . . 2 2 3 2 Weapon 6 | . 7 7 6 5 4 Tool/Special . | . . . . . . Unused Backups 65 | . 2 1 1 5 56 Power 3 | . . . . 1 2 Propulsion 34 | . . . . 2 32 Utility 4 | . . . . 1 3 Weapon 24 | . 2 1 1 1 19 Tool/Special . | . . . . . . Average Slot Usage (%) 94 | . 95 100 79 95 98 Engine 5 | . 14 14 1 . . Core 5 | . . . 7 8 8 Treads 25 | . 28 28 12 8 36 Leg 5 | . . . 13 24 . Device 10 | . 9 14 8 17 7 Storage 10 | . 14 14 9 9 9 Protection 7 | . . . 3 6 17 Energy Gun 4 | . 2 . 10 13 . Ballistic Gun 8 | . 25 10 4 2 . Ballistic Cannon 6 | . . 4 . 1 16 Launcher 1 | . . 13 . . . Peak Build Rating 32 | 6 9 10 24 32 28 Average Rating 17 | 4 7 9 17 25 24 On Entrance 12 | . 6 9 10 19 28 Avg Prop Armor Cover (%) 9 | . . . 9 10 . Naked Turns . | . . . . . . Heaviest Build 55 | 14 32 33 35 43 55 Greatest Support 83 | 40 40 40 60 82 83 Greatest Overweight (x) 3 | . . . 3 1 . Average Overweight (x) . | . . . . . . Largest Inventory Capacity 15 | 8 15 15 15 15 15 Average Capacity 14 | 7 12 15 15 15 15 Most Carried 15 | 3 15 15 15 15 15 Average Carried 12 | 1 10 14 13 12 12 Final Capacity 15 | 8 15 15 15 15 15 Final Carried 15 | 2 15 15 11 15 14 Class Distribution -------------------- 58% | Scavenger-Mutant 39% | Mutant Dominant Class ---------------- Mutant | -10/Materials Mutant | -10/Subcaves Scavenger-Mutant | -8/Materials Scavenger-Mutant | -8/Storage Scavenger-Mutant | -8/Recycling Resources | -11 -10 -10 -8 -8 -8 ----------- Run | Yrd Mat Sub Mat Sto Rec Matter Collected 2008 | 145 456 165 555 342 345 Remotely . | . . . . . . Salvage Created 2357 | . 554 111 755 782 155 Parts 140 | . 47 8 42 35 8 Haulers Intercepted 5 | . 2 . . 3 . Recyclers Shooed 3 | . . . 3 . . Parts Field Recycled . | . . . . . . Retrieved Matter . | . . . . . . Parts Self-Destructed . | . . . . . . Prevented . | . . . . . . Parts Restored . | . . . . . . Kills | -11 -10 -10 -8 -8 -8 ------- Run | Yrd Mat Sub Mat Sto Rec Combat Hostiles Destroyed 53 | . 15 4 14 12 8 Melee 2 | . . . 2 . . Guns 37 | . 15 . 12 10 . Cannons 9 | . . . . 1 8 AOE 4 | . . 4 . . . Classes Destroyed 10 | . 6 1 3 . . Builder 3 | . 1 . 2 . . Hauler 5 | . 2 . . 3 . Recycler 5 | . 1 . 2 2 . Operator 2 | . 2 . . . . Watcher 1 | . . . 1 . . Swarmer 15 | . 9 . 3 3 . Grunt 21 | . 6 . 9 5 1 Duelist 1 | . . . 1 . . Sentry 6 | . . . 1 4 1 Subdweller 10 | . . 4 . . 6 Best Kill Streak 5 | . 4 3 5 5 2 Combat Bots Only 4 | . 4 3 4 4 2 Max Kills in Single Turn 2 | . 2 1 1 1 1 Gunslinging 1 | . 1 . . . . Exploded 1 | . . 1 . . . Melee 1 | . . . 1 . . Uniques/NPCs Destroyed . | . . . . . . Combat | -11 -10 -10 -8 -8 -8 -------- Run | Yrd Mat Sub Mat Sto Rec Hostile Shots Fired 425 | . 79 12 166 95 73 Missed 112 | . 24 4 45 22 17 Hits 313 | . 55 8 121 73 56 Melee 6 | . . . 2 . 4 Projectile 307 | . 55 8 119 73 52 Critical Strikes 14 | . 1 . 6 1 6 Damage Taken 4200 | . 534 162 1750 881 873 Core 670 | . 75 38 339 124 94 Absorbed by Shields . | . . . . . . Ignored by Resistances 119 | . . . . . 119 Core Remaining (%) 77 | 100 . 54 . . . Volleys Fired 209 | . 56 9 57 53 34 Largest 2 | . 2 1 2 2 2 Hottest 130 | . 70 33 130 130 74 Shots Fired 395 | . 108 9 112 98 68 Gun 304 | . 104 . 111 89 . Cannon 77 | . . . . 9 68 Launcher 14 | . 4 9 1 . . Special . | . . . . . . Kinetic 251 | . 86 . 70 27 68 Thermal 130 | . 18 . 41 71 . Explosive 14 | . 4 9 1 . . Electromagnetic . | . . . . . . Robot Hit Streak 16 | . 16 6 7 14 14 Robot Miss Streak 3 | . 3 1 3 3 2 Penetration Max . | . . . . . . Secondary Targets 8 | . 6 . 1 1 . Max Gunslinging Chain 1 | . 1 . 1 1 . Shots Hit Robots 283 | . 73 7 87 69 47 Core Hits 107 | . 26 6 37 28 10 Critical Kills . | . . . . . . Critical Parts Destroyed 1 | . 1 . . . . Critical Strikes 10 | . 1 . 2 5 2 Burn 4 | . . . . 4 . Destroy 1 | . 1 . . . . Blast 3 | . . . . 1 2 Sever 2 | . . . 2 . . Melee Attacks 22 | . . . 18 4 . Impact . | . . . . . . Slashing 22 | . . . 18 4 . Piercing . | . . . . . . Sneak Attacks 2 | . . . 2 . . Combat Hostiles . | . . . . . . Follow-up Attacks . | . . . . . . Damage Inflicted 5371 | . 1011 386 1687 1135 1152 Guns 2974 | . 993 . 1012 969 . Cannons 1318 | . . . . 166 1152 Explosions 504 | . 18 386 100 . . Melee 564 | . . . 564 . . Ramming 11 | . . . 11 . . Kinetic 2949 | . 831 . 590 376 1152 Thermal 1343 | . 162 . 422 759 . Explosive 504 | . 18 386 100 . . Electromagnetic . | . . . . . . Impact . | . . . . . . Slashing 564 | . . . 564 . . Piercing . | . . . . . . Highest Corruption . | . . . . . . Average Corruption . | . . . . . . Corruption Purged . | . . . . . . Corruption Blocked . | . . . . . . Overload Shots . | . . . . . . Overflow Damage 74 | . . . 74 . . Projectiles . | . . . . . . Explosions . | . . . . . . Melee 74 | . . . 74 . . Knockbacks 9 | . . . . . 9 Impact . | . . . . . . Kinetic 9 | . . . . . 9 Secondary . | . . . . . . Self-Inflicted Damage 26 | . . . 26 . . Shots 1 | . . . 1 . . Rammed . | . . . . . . Targets Rammed 1 | . . . 1 . . Kicked 1 | . . . 1 . . Crushed . | . . . . . . Highest Temperature 329 | . 184 . 329 81 165 Average Temperature 64 | . 71 . 95 23 62 Received Heat Transfer 1608 | . 186 18 909 315 180 Effects 1 | . . . 1 . . Shutdowns 1 | . . . 1 . . Siege Activations . | . . . . . . Martial Activations . | . . . . . . Shielding Activations . | . . . . . . Robots Disrupted . | . . . . . . Combat Hostiles . | . . . . . . Robots Corrupted . | . . . . . . Combat Hostiles . | . . . . . . Parts Fried . | . . . . . . Impact Corruptions . | . . . . . . Robots Melted 1 | . . . . 1 . Combat Hostiles 1 | . . . . 1 . Parts Melted 10 | . 2 . 2 6 . Heat Transferred 3737 | . 481 . 1036 2220 . Parts Sabotaged . | . . . . . . Parts Stolen . | . . . . . . Parts Stripped . | . . . . . . Power Chain Reactions . | . . . . . . Alert | -11 -10 -10 -8 -8 -8 ------- Run | Yrd Mat Sub Mat Sto Rec Maximum Alert Level 3 | . . . . 3 1 Low Security (%) 83 | 100 100 . 100 33 88 Level 1 8 | . . . . 20 11 Level 2 6 | . . . . 37 . Level 3 1 | . . . . 9 . Level 4 . | . . . . . . Level 5 . | . . . . . . High Security . | . . . . . . Max Security . | . . . . . . Peak Influence 717 | . 128 . 156 717 281 Initial 261 | . . . . 42 261 Average 109 | . 58 . 41 364 53 Influence Increases 2421 | . 537 . 486 1237 161 Destroy 0b10 Robot/C 1240 | . 300 . 280 620 40 Destroy 0b10 Robot/NC 85 | . 30 . 25 30 . Destroy Leader 304 | . 54 . 52 198 . Allied During Kill 292 | . . . . 291 1 Successful Hack 40 | . 26 . 8 1 5 Select Force Hacks 150 | . 60 . . . 90 Disable Machine 90 | . 15 . 30 30 15 Destroy Structure 55 | . 37 . 1 7 10 Lose Combat Pursuer 165 | . 15 . 90 60 . Influence Decreases 2421 | . 483 54 385 666 833 Entered New Map 496 | . . 26 . 59 411 Time Decay 1465 | . 483 28 245 337 372 Lost Part 260 | . . . 140 90 30 Lost Ally 200 | . . . . 180 20 Squads Dispatched 12 | . 4 . 2 6 . Investigation 7 | . 2 . 2 3 . Extermination . | . . . . . . Reinforcement 4 | . 2 . . 2 . Assault . | . . . . . . Garrison 1 | . . . . 1 . Intercept . | . . . . . . Searches Triggered . | . . . . . . Construction Impeded . | . . . . . . Haulers Reinforced . | . . . . . . Active Scanning Responses . | . . . . . . Cargo Convoy Interrupts . | . . . . . . Stealth | -11 -10 -10 -8 -8 -8 --------- Run | Yrd Mat Sub Mat Sto Rec Distress Signals 7 | . . . 4 2 1 Communications Jammed . | . . . . . . Distress Signals . | . . . . . . Times Spotted 109 | . 26 4 34 31 14 Peak Tracking Total 11 | . 4 2 11 8 6 Tactical Retreats 10 | . 1 . 4 4 1 Traps | -11 -10 -10 -8 -8 -8 ------- Run | Yrd Mat Sub Mat Sto Rec Traps Triggered 3 | . . . 2 1 . Indirectly . | . . . . . . Trap Hack Attempts . | . . . . . . Triggered . | . . . . . . Disarmed . | . . . . . . Reprogrammed . | . . . . . . Reused . | . . . . . . Traps Extracted . | . . . . . . Installed . | . . . . . . Triggered . | . . . . . . Machines | -11 -10 -10 -8 -8 -8 ---------- Run | Yrd Mat Sub Mat Sto Rec Machines Disabled 7 | . 2 . 2 2 1 Max in Single Turn 1 | . 1 . 1 1 1 Machines Repaired . | . . . . . . Machines Dismantled . | . . . . . . Machines Sabotaged . | . . . . . . Overloaded Fab Kills . | . . . . . . Hacking | -11 -10 -10 -8 -8 -8 --------- Run | Yrd Mat Sub Mat Sto Rec Machines Accessed 18 | . 6 . 3 4 5 Terminals 12 | . 4 . 3 4 1 Fabricators . | . . . . . . Repair Stations . | . . . . . . Recycling Units 6 | . 2 . . . 4 Scanalyzers . | . . . . . . Garrison Access . | . . . . . . Total Hacks 36 | . 16 . 5 6 9 Successful 17 | . 9 . 1 2 5 Failed 19 | . 7 . 4 4 4 Catastrophic 4 | . 1 . 1 1 1 Database Lockouts . | . . . . . . Manual 33 | . 15 . 5 4 9 Terminals 27 | . 13 . 5 6 3 Fabricators . | . . . . . . Repair Stations . | . . . . . . Recycling Units 9 | . 3 . . . 6 Scanalyzers . | . . . . . . Garrison Access . | . . . . . . Terminal Hacks 8 | . 6 . 1 1 . Robot Analysis 3 | . 3 . . . . Prototype ID Bank 1 | . 1 . . . . Open Door 1 | . . . . 1 . Branch Access Points 1 | . . . 1 . . Recycling Unit Index 1 | . 1 . . . . Zone Layout 1 | . 1 . . . . Fabricator Hacks . | . . . . . . Repair Station Hacks . | . . . . . . Recycling Unit Hacks . | . . . . . . Scanalyzer . | . . . . . . Garrison Access Hacks . | . . . . . . Unauthorized Hacks 9 | . 3 . . 1 5 Terminals 3 | . 1 . . 1 1 Botnet 3 | . 1 . . 1 1 Fabricators . | . . . . . . Repair Stations . | . . . . . . Recycling Units 6 | . 2 . . . 4 Mask 1 | . . . . . 1 Tunnel 5 | . 2 . . . 3 Scanalyzers . | . . . . . . Garrison Access . | . . . . . . Data Cores Recovered . | . . . . . . Used . | . . . . . . Hacking Detections 13 | . 4 . 2 4 3 Full Trace Events 1 | . . . . 1 . Feedback Events . | . . . . . . Feedback Blocked . | . . . . . . Robot Schematics Acquired . | . . . . . . Robots Built . | . . . . . . Authchips . | . . . . . . Time . | . . . . . . Total Robot Build Rating . | . . . . . . Part Schematics Acquired . | . . . . . . Parts Built . | . . . . . . Authchips . | . . . . . . Time . | . . . . . . Total Part Build Rating . | . . . . . . Part Studies Acquired . | . . . . . . Parts Repaired . | . . . . . . Time . | . . . . . . Parts Recycled . | . . . . . . Recycled Matter . | . . . . . . Retrieved Matter . | . . . . . . Retrieved Components . | . . . . . . Parts Scanalyzed . | . . . . . . Part Schematics Acquired . | . . . . . . Parts Damaged . | . . . . . . Bothacking | -11 -10 -10 -8 -8 -8 ------------ Run | Yrd Mat Sub Mat Sto Rec Used RIF Installer . | . . . . . . Robots Hacked . | . . . . . . Non-combat . | . . . . . . Combat . | . . . . . . Robot Hacks Applied . | . . . . . . Relay Couplers Released . | . . . . . . Fabnet Peak Effective % . | . . . . . . Robots Rewired 2 | . . . . 2 . Allies Hacked . | . . . . . . Hacks Repelled . | . . . . . . Allies | -11 -10 -10 -8 -8 -8 -------- Run | Yrd Mat Sub Mat Sto Rec Total Allies 10 | . . . . 10 . Largest Group 10 | . . . . 10 1 Highest-Rated Group 173 | . . . . 173 15 Highest-Rated Ally 29 | . . . . 29 15 Total Orders . | . . . . . . Ally Attacks 149 | . . . . 146 3 Total Damage 1991 | . . . . 1946 45 Kills 20 | . . . . 20 . Allies Corrupted . | . . . . . . Allies Melted . | . . . . . . Intel | -11 -10 -10 -8 -8 -8 ------- Run | Yrd Mat Sub Mat Sto Rec Active Infowar (turns) 807 | . . . 81 726 . Structural 807 | . . . 81 726 . Robot Analysis Total 3 | . 3 . . . . Derelict Logs Recovered . | . . . . . . Drone Launches . | . . . . . . Drone Recoveries . | . . . . . . Exploration | -11 -10 -10 -8 -8 -8 ------------- Run | Yrd Mat Sub Mat Sto Rec Turns Passed 5833 | 75 1312 762 797 939 1948 Spaces Moved 2988 | 41 631 457 339 425 1095 Core 1 | 1 . . . . . Treads 2460 | 40 631 457 107 130 1095 Legs 464 | . . . 169 295 . Wheels 63 | . . . 63 . . Hover . | . . . . . . Flight . | . . . . . . Fastest Speed 50 | 50 160 160 95 120 156 Average Speed 154 | 157 160 160 143 139 158 Slowest Speed 240 | 160 160 160 240 232 160 Overloaded Moves . | . . . . . . Propulsion Burnouts . | . . . . . . Robots Hopped . | . . . . . . Potential Cave-ins . | . . . . . . Cave-ins Triggered . | . . . . . . Exploration Rate (%) 51 | 3 88 29 31 74 81 Regions Visited 5 Branch Regions 3 Pre-discovered Areas 5 | . 2 . . . 3 Known Exits Taken 1 | . . . 1 . . Unknown Exits Taken 4 | 1 1 1 . 1 . Scrap Searched . | . . . . . . Spaces Dug 4 | . . . . 4 . Terrain Destroyed 81 | . 35 34 . 4 8 Melee 4 | . . . . 4 . Projectile 8 | . . . . . 8 AOE 69 | . 35 34 . . . Terrain Rammed . | . . . . . . Walls Destroyed . | . . . . . . Machines Disabled . | . . . . . . Actions | -11 -10 -10 -8 -8 -8 --------- Run | Yrd Mat Sub Mat Sto Rec Total 3794 | 49 825 478 501 668 1273 Wait 279 | . 99 9 39 103 29 Move 2983 | 40 630 456 338 424 1095 Hop . | . . . . . . Pick Up 97 | 3 17 1 8 16 52 Fast Attach 31 | 5 1 . 11 10 4 Attach 23 | 1 1 . 12 7 2 Detach 4 | . . . 2 1 1 Swap 36 | . 13 2 10 10 1 Drop 81 | . 8 1 5 12 55 Fire 209 | . 56 9 57 53 34 Melee 22 | . . . 18 4 . Ram . | . . . . . . Kick 1 | . . . 1 . . Crush . | . . . . . . Escape Stasis . | . . . . . . Rewire 28 | . . . . 28 . Trap . | . . . . . . Miscellaneous . | . . . . . . Route ------- -11/Scrapyard -10/Materials (discovered 6 exits: [*Mat x3] / [*Min x2] / [*Sub]) -10/Subcaves -8/Materials -8/Storage (discovered 2 exits: [*Fac] / *Rec) -8/Recycling (discovered 1 exit: [*Fac]) History --------- Turn | Location | Event 13 | -11/Scrapyard | Discovered new exit (range 15) 76 | -11/Scrapyard | Entered Materials 229 | -10/Materials | Discovered new exit (range 8) 303 | -10/Materials | Build established: Mutant 491 | -10/Materials | Discovered new exit (range 15) 846 | -10/Materials | Discovered new exit (range 8) 989 | -10/Materials | Discovered new exit (range 14) 1257 | -10/Materials | Discovered new exit (range 14) 1377 | -10/Materials | Discovered new exit (range 3) 1388 | -10/Materials | Entered Subcaves 1414 | -10/Subcaves | Ambushed by Subdweller buried in earth 2127 | -10/Subcaves | Discovered new exit (range 8) 2150 | -10/Subcaves | Entered Materials 2150 | -8/Materials | Evolved 4 slots: Propulsion x2, Utility x2 2579 | -8/Materials | Build established: Scavenger-Mutant 2788 | -8/Materials | Lost 9 parts (1p4n2u2w) 2806 | -8/Materials | Core integrity fell below 50% 2903 | -8/Materials | Identified exit to Storage 2947 | -8/Materials | Entered Storage 3063 | -8/Storage | Lost 3 parts (1p2n) 3140 | -8/Storage | Assisted by bots powering up and referring to "LRC-V3" 3234 | -8/Storage | Garrison activated, responded to threat 3385 | -8/Storage | Discovered new exit (range 16) 3522 | -8/Storage | Core integrity fell below 20% 3552 | -8/Storage | Lost 4 allies 3558 | -8/Storage | Lost 6 parts (3n1u2w) 3880 | -8/Storage | Used back door to open Recycling access 3880 | -8/Storage | Discovered new exit (range 5) 3886 | -8/Storage | Entered Recycling 3886 | -8/Recycling | Accompanied by 1 ally 4569 | -8/Recycling | Discovered new exit (range 16) 5834 | -8/Recycling | Destroyed by G-47 Trooper with Particle Gun Last Messages --------------- 05541_ Dropped Lgt. Treads. 05616_ Acquired Com. Wheel. 05665_ Acquired Carbon-fiber Leg. 05673_ Dropped Carbon-fiber Leg. 05673_ Acquired Carbon-fiber Leg. 05699_ Dropped Com. Wheel. 05702_ Acquired Carbon-fiber Leg. 05819_ P-60 Hacker springs to life. 05819_ Y-45 Defender springs to life. 05819_ G-47 Trooper springs to life. 05824_ G-47 Trooper knocked back. 05827_ G-47 Trooper suffers critical hit (Blast). 05827_ Destroyed Lgt. Nuclear Core. 05827_ G-47 Trooper destroyed. 05827_ Lgt. Nuclear Core destroyed. 05828_ Lgt. Armor Plating destroyed. 05830_ G-47 Trooper knocked back. 05830_ Assault Cannon destroyed. 05834_ Critical hit (Burn: +37). Map ----- +----------------------------------------------------+ | | | | | | | ?????????????????????????????????????????????????? | | ?????????????????????????????????????????????????? | | ?????????????????????????????????????????????????? | | ?????????????????????????????????????????????????? | | ?????????????????????????????????????????????????? | | ?????????????????????????????????????????????????? | | ?????????????????????????????????????????????????? | | ?????????????????????????????????????????????????? | | ?????????????????????????????????????????????????? | | ?????????????????????????????????????????????????? | | ?????????????????????????????????????????????????? | | ?????????????????????????????????????????????????? | | ?????????????????????###########?????????????????? | | ?????????????????????# i #?????????????????? | | ?????????????????????#[ YuYh #?????????????????? | | ?????????????????????#Y [ i[ %#?????????????????? | | ?????????????????????# k #?????????????????? | | ?????????????????????#g !%d #?????????????????? | | ?????????????????????# g i b ??????????????????? | | ?????????????????????#%g%pY [????????????????????? | | ?????????????????????? % ??????????????????????# | | ???????????????????#####b;##########?????????##### | | ???????????????????# @ ??? | | ???????????????????+ ??? | | ???????????????????# """ ??? | | #??????????????????### """ ####+#####?????????# | | # ???????????????????# """" #??????????????????? | | # ???????????????????# """" #??????????????????? | | ! ???????????????????# """" #??????????????????? | | ???????????????????# "" #??????????????????? | | ! ??????????????????## #??????????????????? | | # ###################; ###????????????????? | | # " ""#????????????????? | | # ################;; " T"#????????????????? | | # #??????????????# ; " ""#????????????????? | | # #??????????????# " " ###????????????????? | | # #??????"T"######"" ! #????????????????? | | # #????? " #######? #???????? | | # #??#??????"""" " ## ###?????? | | # #?? ??????"""" # +?????? | | # #?? ??????"""" % " "#??????? | | # ### #????""""" " "##?????? | | ## #??""""""" !% % % "###+#?? | | ## # "" " " % ### | | T ## #?#T########"" " ## | | ## #??????????##" " ### % "" ## | | ## #??????####### ###?# "" # | +----------------------------------------------------+ Best States ------------- Heat Dissipation 59 Energy Generation 14 Energy Capacity 250 Matter Stores 300 Matter Capacity 300 Sight Range 16 Terrain Scan Density 10 Base Temperature (-) 100 Armor Coverage 525 Resistance: KI 20 Evasion (%) 55 Recoil Reduction 4 Offensive Hacking 10 Defensive Hacking 10 Item Schematics ----------------- None Robot Schematics ------------------ None Fabricated ------------ Nothing Repaired ---------- Nothing Studied --------- None Alien Tech Used ----------------- None Achievements -------------- None Challenges ------------ None Game ------ Seed AntigravMakeshiftSystem Manual? 0 Play Time 00:33:35 Cumulative 394.9 hours Start 2026.09.13 @ 01:07:58 End 2026.09.13 @ 01:54:46 Sessions 1 Manual Loads 0 Difficulty Rogue Special Mode None Game No. 355 Rogue 301 Adventurer 54 Explorer 0 Win Type - Total 23 Types 15/1/1/1/1/0/1/1/1/1 Lore% 83 Gallery% 70 Achievement% 69 Wizard Run 0 Options --------- Layout 1 ASCII 0 Keyboard 0 Movement Mouse Keybinds 1 Fullscreen 2 Font 32/Tamsyn Map View 50x35 Zoom Use 0% Tactical HUD 1 Map Filters NONE Filters NONE Steam 1 RUN: 81e5279f-6fab-44a7-aa43-b4c31407c578